[Event "Mitropa Cup Women 2024"]
[Site "Apolda"]
[Date "2024.02.23"]
[Round "9.6"]
[White "Schippke, Manon"]
[Black "Zimina, Olga"]
[Result "1-0"]
[ECO "B13"]
[WhiteElo "2162"]
[BlackElo "2291"]
[Annotator "TA"]
[PlyCount "83"]
[EventDate "2024.02.15"]
[EventType "team-tourn"]
[EventCountry "GER"]
[SourceTitle "playchess.com"]
[Source "ChessBase"]
[SourceQuality "1"]
[WhiteTeam "France"]
[BlackTeam "Italy"]
[WhiteTeamCountry "FRA"]
[BlackTeamCountry "ITA"]
[TimeControl "40/5400+30:1800+30"]

{[%evp 24,83,23,22,27,25,32,29,31,8,10,0,0,2,0,15,28,25,25,6,61,39,76,74,96,62,72,77,77,83,75,65,90,66,68,1,595,583,586,563,850,861,860,819,840,803,803,444,1049,1049,1043,1042,1040,1041,1007,0,1101,1098,29996,29997,29997,29998]} 1. e4 {[%emt 0:00:04]} c6 {[%emt 0:00:08]} 2. d4 {[%emt 0:00:10]} d5 {[%emt 0:00:05]} 3. exd5 {[%emt 0:00:10]} cxd5 {[%emt 0:00:06]} 4. Bd3 {[%emt 0:00:05]} Nf6 {[%emt 0:00:46]} 5. c3 {[%emt 0:00:35]} Nc6 {[%emt 0:04:38]} 6. Bf4 {[%emt 0:00:26]} Bg4 {[%emt 0:00:07]} 7. Qb3 {[%emt 0:00:14]} Qd7 {[%emt 0:00:06]} 8. Nd2 {[%emt 0:00:30]} e6 {[%emt 0:00:03]} 9. Ngf3 {[%emt 0:00:05]} Bd6 {[%emt 0:00:10]} 10. Bxd6 {[%emt 0:01:32]} Qxd6 {[%emt 0:00:14]} 11. O-O {[%emt 0:00:40]} O-O {[%emt 0:00:08]} 12. Rae1 {[%emt 0:01:40]} Bxf3 {[%emt 0:00:05]} 13. Nxf3 {[%emt 0:00:07][%cal Of3e5]} Qc7 {[%emt 0:00:02]} 14. Qc2 {[%emt 0:07:53]} Rfc8 {[%emt 0:01:00][%cal Oc6b4]} 15. a3 {[%emt 0:00:28]} Rab8 {[%emt 0:00:22] White has an edge.} 16. Qe2 {[%emt 0:09:06]} a6 {[%emt 0:02:15]} 17. Ne5 {[%emt 0:01:04]} Nxe5 {[%emt 0:00:08]} 18. dxe5 {[%emt 0:00:05]} Nd7 {[%emt 0:00:04]} 19. f4 {[%emt 0:10:45]} Re8 {[%emt 0:02:45]} 20. Rf3 {[%emt 0:05:07]} g6 {[%emt 0:01:02]} 21. h4 {[%emt 0:07:18][%cal Bh2h4,Bh4h5][%mdl 32]} Qd8 {[%emt 0:20:58]} (21... Nc5 $11) 22. Rh3 {[%emt 0:05:04]} b5 {[%emt 0:02:15]} 23. h5 {[%emt 0:04:16]} Nf8 {[%emt 0:04:08]} 24. Qg4 {[%emt 0:07:46]} d4 {[%emt 0:01:52]} 25. c4 {[%emt 0:12:13] White is much more active.} bxc4 {[%emt 0:12:33]} 26. Bxc4 $40 {[%emt 0:00:06][%mdl 128] Hoping for hxg6. White is out for blood.} Rxb2 {[%emt 0:07:09]} 27. hxg6 $1 {[%emt 0:00:38]} fxg6 {[%emt 0:11:12]} 28. f5 $1 {[%emt 0:00:16][%cal Bf4f5,Bf5g6][%mdl 32]} (28. Bxa6 $2 Qa5 29. Qd1 Qxa6 $19) 28... Qa5 $1 {[%emt 0:00:22]} 29. Qg3 {[%emt 0:11:52]} (29. Bxe6+ Nxe6 30. Rf1 (30. Qh4 $2 Ng5 $19) 30... Qxe5 31. fxe6 Rxe6 $19) (29. Re4 $14 Rb7 30. fxe6 (30. Bxe6+ Nxe6 31. fxe6 Qc5 $15) (30. fxg6 hxg6 31. Qg5 Qd8 $16)) 29... Qc5 $2 {[%emt 0:04:29][%mdl 8192] [#]} (29... Re7 $11 {and Black has nothing to worry.}) 30. fxg6 $1 $18 {[%emt 0:03:21]} (30. Rc1 d3+ 31. Kh2 Rc2 (31... Qxa3 $2 32. fxg6 hxg6 33. Qh4 $18) 32. Rxc2 dxc2 $15) 30... d3+ {[%emt 0:04:28][%cal Bd4d3,Bd3d2][%mdl 32]} 31. Re3 {[%emt 0:00:29]} hxg6 {[%emt 0:16:12] [#]} 32. Qh4 {[%emt 0:00:49] White threatens Qh8+ and mate.} (32. Bxd3 Re7 $16) 32... Qxe3+ {[%emt 0:03:13]} 33. Rxe3 {[%emt 0:00:11][%cal Oe3h3]} d2 {[%emt 0:00:09]} 34. Be2 $1 {[%emt 0:01:14][%cal Oe3h3] Rh3! would kill now.} (34. Bxa6 $2 d1=Q+ (34... d1=R+ 35. Kh2 $14) 35. Bf1 Qc1 $19) 34... Rb1+ {[%emt 0:00:04]} 35. Kh2 {[%emt 0:00:02][%cal Oe3h3] White wants to mate with Rh3!} Rb7 {[%emt 0:03:05]} (35... d1=R $142 36. Bxd1 Rxd1) 36. Rh3 {[%emt 0:01:56]} (36. Bxa6 Rh7 $11 (36... d1=R $2 37. Bxb7 Nh7 38. Rh3 $18) (36... d1=R $2 37. Bxb7 Rd7 38. Bc6 $18)) 36... Rh7 {[%emt 0:00:40]} 37. Qg5 {[%emt 0:00:21]} Rd7 {[%emt 0:01:08]} 38. Qf6 {[%emt 0:00:23][%csl Gf6][%cal Rh3h8]} (38. Bxa6 $2 d1=Q (38... d1=B $2 39. Bb5 $18) 39. Bb5 Ree7 $19) 38... Rg7 {[%emt 0:00:18]} 39. Qg5 {[%emt 0:01:05]} (39. Bxa6 $2 d1=Q (39... d1=B $2 40. Rh6 $18) 40. Qf2 Rh7 41. Rxh7 Nxh7 $19) 39... Rd7 {[%emt 0:00:15]} 40. Qh6 {[%emt 0:00:56] Threatening mate with Qh8+.} (40. Bxa6 $2 d1=Q (40... d1=B $2 41. Bb5 $18) 41. Bb5 Ree7 $19) 40... Kf7 {[%emt 0:00:49]} 41. Qh8 {[%emt 0:30:49]} ({Inferior is} 41. Bxa6 d1=Q (41... d1=B $2 {loses.} 42. Qh8 $18) 42. Qh8 Rb8 (42... Ra8 $2 43. Qf6+ Ke8 44. Rh8 $18) 43. Rf3+ Qxf3 44. gxf3 Rb6 $11) 41... Red8 {[%emt 0:05:04]} 42. Rf3+ {[%emt 0:00:00] Weighted Error Value: White=0.43/Black=0.53.  Loses game:     	---       	Black=1      Mistake:       	White=1     	Black=1      Inaccurate:     	White=1     	Black=3      OK:         	White=5     	Black=3      Best:        	---       	Black=4      Strong:       	White=3     	Black=1} 1-0

[Event "Mitropa Cup Women 2024"]
[Site "Apolda"]
[Date "2024.02.23"]
[Round "9.7"]
[White "Gueci, Tea"]
[Black "Navrotescu, Andreea"]
[Result "1-0"]
[ECO "C43"]
[WhiteElo "2193"]
[BlackElo "2222"]
[Annotator "RC"]
[PlyCount "71"]
[EventDate "2024.02.15"]
[EventType "team-tourn"]
[EventCountry "GER"]
[SourceTitle "playchess.com"]
[Source "ChessBase"]
[SourceQuality "1"]
[WhiteTeam "Italy"]
[BlackTeam "France"]
[WhiteTeamCountry "ITA"]
[BlackTeamCountry "FRA"]
[TimeControl "40/5400+30:1800+30"]

1. e4 {[%emt 0:00:01]} e5 {[%emt 0:00:06]} 2. Nf3 {[%emt 0:00:03]} Nf6 {[%emt 0:00:05]} 3. d4 {[%emt 0:01:16]} Nxe4 {[%emt 0:00:15]} 4. dxe5 {[%emt 0:01:10]} d5 {[%emt 0:00:09]} 5. Nbd2 {[%emt 0:01:02]} Nc5 {[%emt 0:00:31]} 6. c3 {[%emt 0:05:50]} Ne6 {[%emt 0:06:48]} 7. Bd3 {[%emt 0:10:41]} Be7 {[%emt 0:03:10]} 8. O-O {[%emt 0:00:36]} O-O {[%emt 0:00:24]} 9. Re1 {[%emt 0:02:14]} g6 {[%emt 0:21:46]} 10. Nf1 {[%emt 0:02:32]} Ng7 {[%emt 0:01:49]} 11. Bh6 {[%emt 0:03:10]} c5 {[%emt 0:04:08]} 12. h3 {[%emt 0:04:36]} Nc6 {[%emt 0:05:36]} 13. Qd2 {[%emt 0:01:50]} Be6 {[%emt 0:07:18]} 14. Ng5 {[%emt 0:08:05]} Qb6 {[%emt 0:03:40]} 15. Nh2 {[%emt 0:05:04]} Rad8 {[%emt 0:04:59]} 16. Nxe6 {[%emt 0:08:18]} fxe6 {[%emt 0:00:02]} 17. Bxg7 {[%emt 0:01:52]} Kxg7 {[%emt 0:00:03]} 18. Ng4 {[%emt 0:00:05]} Kh8 {[%emt 0:14:14]} 19. Bxg6 {[%emt 0:03:23]} Rg8 {[%emt 0:03:50]} 20. Bf7 {[%emt 0:08:21]} Rg7 {[%emt 0:00:02]} 21. Bxe6 {[%emt 0:00:38]} Nd4 {[%emt 0:06:59]} 22. cxd4 {[%emt 0:03:39]} Qxe6 {[%emt 0:00:02]} 23. Rad1 {[%emt 0:02:10]} cxd4 {[%emt 0:07:16]} 24. Qxd4 {[%emt 0:03:53]} h5 {[%emt 0:00:36]} 25. Ne3 {[%emt 0:04:44]} Qxh3 {[%emt 0:00:02]} 26. Kf1 {[%emt 0:00:53]} Qe6 {[%emt 0:00:21]} 27. Ke2 {[%emt 0:05:04]} Qa6+ {[%emt 0:05:07]} 28. Rd3 {[%emt 0:00:30]} Rf8 {[%emt 0:02:58]} 29. Rh1 {[%emt 0:01:33]} h4 {[%emt 0:00:01]} 30. g3 {[%emt 0:01:40]} Qxa2 {[%emt 0:00:48]} 31. Nxd5 {[%emt 0:01:08]} Re8 {[%emt 0:02:18]} 32. Nxe7 {[%emt 0:00:32]} Rgxe7 {[%emt 0:00:31]} 33. Qxh4+ {[%emt 0:00:12]} Kg8 {[%emt 0:00:00]} 34. Qh8+ {[%emt 0:00:10]} Kf7 {[%emt 0:00:01]} 35. Qf6+ {[%emt 0:00:08]} Kg8 {[%emt 0:00:02]} 36. Rh8# {[%emt 0:00:09]} 1-0

[Event "Mitropa Cup Women 2024"]
[Site "Apolda"]
[Date "2024.02.23"]
[Round "9.8"]
[White "Blanquet, Camille"]
[Black "Cassi, Elisa"]
[Result "1-0"]
[ECO "E20"]
[WhiteElo "2023"]
[BlackElo "2033"]
[Annotator "NA RC"]
[PlyCount "77"]
[EventDate "2024.02.15"]
[EventType "team-tourn"]
[EventCountry "GER"]
[SourceTitle "playchess.com"]
[Source "ChessBase"]
[SourceQuality "1"]
[WhiteTeam "France"]
[BlackTeam "Italy"]
[WhiteTeamCountry "FRA"]
[BlackTeamCountry "ITA"]
[TimeControl "40/5400+30:1800+30"]

1. d4 {[%emt 0:00:03]} d5 {[%emt 0:00:06]} 2. c4 {[%emt 0:00:07]} e6 {[%emt 0:00:06]} 3. Nc3 {[%emt 0:00:11]} Bb4 {[%emt 0:00:06]} 4. Nf3 {[%emt 0:01:57]} Nf6 {[%emt 0:00:19]} 5. g3 {[%emt 0:01:09]} dxc4 {[%emt 0:02:11]} 6. Bg2 {[%emt 0:01:50]} O-O {[%emt 0:05:41]} 7. O-O {[%emt 0:02:04]} Nc6 {[%emt 0:02:34]} 8. Qa4 {[%emt 0:04:28]} Nd5 {[%emt 0:12:43]} 9. Qc2 {[%emt 0:00:31]} Rb8 {[%emt 0:04:12]} 10. e4 {[%emt 0:06:31]} Nxc3 {[%emt 0:03:51]} 11. bxc3 {[%emt 0:00:11]} Be7 {[%emt 0:00:38]} 12. h4 {[%emt 0:07:59]} h6 {[%emt 0:04:28]} 13. Bf4 {[%emt 0:01:39]} b5 {[%emt 0:07:06]} 14. Rab1 {[%emt 0:06:29]} a5 {[%emt 0:05:57]} 15. Rfd1 {[%emt 0:08:41]} Ba6 {[%emt 0:10:58]} 16. d5 {[%emt 0:10:36]} exd5 {[%emt 0:00:07]} 17. exd5 {[%emt 0:00:15]} Na7 {[%emt 0:00:35]} 18. Be3 {[%emt 0:01:06]} Ra8 {[%emt 0:07:10]} 19. Nd4 {[%emt 0:08:38]} Bd6 {[%emt 0:01:03]} 20. Qf5 {[%emt 0:04:37]} Bc8 {[%emt 0:07:26]} 21. Qh5 {[%emt 0:01:17]} Bd7 {[%emt 0:02:11]} 22. Be4 {[%emt 0:05:36]} Re8 {[%emt 0:04:30]} 23. Qf3 {[%emt 0:05:16]} b4 {[%emt 0:01:29]} 24. Bc2 {[%emt 0:03:13]} Nb5 {[%emt 0:01:38]} 25. Nxb5 {[%emt 0:00:25]} Bxb5 {[%emt 0:00:05]} 26. Qf5 {[%emt 0:01:25]} g6 {[%emt 0:01:06]} 27. Qf3 {[%emt 0:01:30]} c5 {[%emt 0:04:27]} 28. dxc6 {[%emt 0:02:48]} Qc7 {[%emt 0:05:14]} 29. Qd5 {[%emt 0:03:19]} Bxg3 {[%emt 0:00:26]} 30. Qxb5 {[%emt 0:00:35]} Bxh4 {[%emt 0:01:30]} 31. Qxc4 {[%emt 0:01:27]} Rxe3 {[%emt 0:00:37]} 32. Rd7 {[%emt 0:03:11]} Bxf2+ {[%emt 0:02:48]} 33. Kf1 {[%emt 0:00:05]} Qxd7 {[%emt 0:03:00]} 34. cxd7 {[%emt 0:00:09]} Rxc3 {[%emt 0:00:37]} 35. Qe4 {[%emt 0:00:49]} Rf8 {[%emt 0:00:28]} 36. Kxf2 {[%emt 0:00:34]} Kg7 {[%emt 0:00:35]} 37. Rd1 {[%emt 0:00:36]} Rd8 {[%emt 0:00:26]} 38. Qe5+ {[%emt 0:00:51]} Kh7 {[%emt 0:00:05]} 39. Bxg6+ {[%emt 0:00:34]} 1-0

[Event "Mitropa Cup Women 2024"]
[Site "Apolda"]
[Date "2024.02.23"]
[Round "9.9"]
[White "Polterauer, Chiara"]
[Black "Cvitan, Ena"]
[Result "0-1"]
[ECO "B12"]
[WhiteElo "2189"]
[BlackElo "2242"]
[Annotator "TA"]
[PlyCount "74"]
[EventDate "2024.02.15"]
[EventType "team-tourn"]
[EventCountry "GER"]
[SourceTitle "playchess.com"]
[Source "ChessBase"]
[SourceQuality "1"]
[WhiteTeam "Austria"]
[BlackTeam "Croatia"]
[WhiteTeamCountry "AUT"]
[BlackTeamCountry "CRO"]
[TimeControl "40/5400+30:1800+30"]

{[%evp 9,74,2,10,9,7,-8,-6,-24,-16,-14,-18,-10,0,0,6,-14,-20,-15,-22,-21,-18,-30,-20,-52,-44,-41,-25,-35,-40,-100,-70,-82,-71,-78,-74,-74,-51,-121,-129,-127,-126,-208,-204,-210,-208,-208,-212,-357,-343,-420,-422,-446,-426,-645,-638,-715,-652,-798,-790,-1492,-1467,-1343,-1331,-1301,-1045,-2070,-1725]} 1. e4 {[%emt 0:00:03]} c6 {[%emt 0:00:10]} 2. d4 {[%emt 0:00:05]} d5 {[%emt 0:00:06]} 3. e5 {[%emt 0:00:05]} Bf5 {[%emt 0:00:10]} 4. h4 {[%emt 0:00:07]} a6 {[%emt 0:00:05]} 5. Bd3 {[%emt 0:03:06]} Bxd3 {[%emt 0:01:39]} 6. Qxd3 {[%emt 0:00:06][%cal Oe5e6]} e6 {[%emt 0:01:09]} 7. Nf3 {[%emt 0:00:53]} c5 {[%emt 0:01:37]} 8. dxc5 {[%emt 0:09:50] The position is equal.} Bxc5 {[%emt 0:01:23]} 9. O-O {[%emt 0:00:33]} Nc6 {[%emt 0:02:26]} 10. c4 {[%emt 0:04:54]} Nb4 {[%emt 0:06:59]} 11. Qb3 {[%emt 0:02:20]} Rc8 {[%emt 0:08:52] aiming for ...dxc4.} 12. cxd5 {[%emt 0:06:38]} Qxd5 {[%emt 0:03:39]} 13. Qxd5 {[%emt 0:04:10]} Nxd5 {[%emt 0:00:23]} 14. Nbd2 {[%emt 0:02:11]} Nh6 {[%emt 0:01:48]} 15. Ne4 {[%emt 0:09:33] Hoping for Bxh6.} Ng4 {[%emt 0:00:41]} 16. Nxc5 {[%emt 0:09:46]} Rxc5 {[%emt 0:00:28]} 17. Bd2 {[%emt 0:00:42]} Ke7 {[%emt 0:04:10]} 18. Rac1 {[%emt 0:02:07] Wards off Rc2} Rhc8 {[%emt 0:00:24]} 19. a3 {[%emt 0:07:24]} (19. Rb1 $15) 19... h5 {[%emt 0:02:49] Black is more active.} 20. Rxc5 {[%emt 0:04:05]} Rxc5 {[%emt 0:01:01]} 21. Rc1 {[%emt 0:00:07] Prevents Rc2} Rxc1+ {[%emt 0:04:35]} 22. Bxc1 $17 {[%emt 0:00:05][%mdl 4096] Endgame. KBN-KNN} Nb6 {[%emt 0:03:56]} 23. b3 {[%emt 0:01:43] Inhibits Nc4. Black continues to play with concentration.} ({Better is} 23. Bd2 $1 $15) 23... Nd7 $1 {[%emt 0:02:08]} 24. Bb2 {[%emt 0:00:29]} Nc5 $1 {[%emt 0:01:40]} 25. b4 {[%emt 0:11:28]} (25. Nd2 $17) 25... Nd3 $19 {[%emt 0:00:59][%csl LRb2,LRf2]} 26. Bd4 {[%emt 0:00:06] [#]} Kd7 $1 {[%emt 0:01:46]} 27. Ng5 {[%emt 0:05:01]} Ngxe5 {[%emt 0:03:22]} (27... Ndxe5 28. f3 Nc6 29. Bxg7 $16) 28. f4 {[%emt 0:02:24]} (28. g3 $142) 28... f6 {[%emt 0:01:52]} 29. Ne4 {[%emt 0:02:05]} Nc4 {[%emt 0:04:09]} (29... Nxf4 30. Bxe5 fxe5 31. Kf2 $19) 30. a4 {[%emt 0:00:36] Black is clearly winning.} Kc6 {[%emt 0:06:18][%cal Oc6d5] White must now prevent ...Kd5!} (30... Nxb4 31. Nc5+ Kd6 32. Nxb7+ Kd5 33. Bc5 $17) 31. Nc5 {[%emt 0:00:48]} (31. f5 $142 exf5 (31... Nxb4 $2 32. fxe6 Nd5 33. Ng3 $19) 32. Ng3) 31... Nxc5 {[%emt 0:03:08]} 32. Bxc5 {[%emt 0:00:22] KB-KN} Nb2 {[%emt 0:00:35]} 33. Bf8 {[%emt 0:00:57]} Nxa4 {[%emt 0:00:44]} 34. Bxg7 {[%emt 0:00:08] [#]} f5 $1 {[%emt 0:00:09] ...Kb5 is the strong threat.} 35. Kf2 {[%emt 0:00:47]} Kd5 {[%emt 0:01:26]} 36. Ke3 {[%emt 0:00:25]} Kc4 {[%emt 0:01:13]} 37. Bf8 {[%emt 0:06:17]} Nc3 {[%emt 0:31:01] Weighted Error Value: White=0.60/Black=0.03 (flawless) .  Mistake:       	White=5     	---        Inaccurate:     	White=1     	---        OK:         	White=8     	Black=11     Best:        	---       	Black=2      Strong:       	---       	Black=3} 0-1

[Event "Mitropa Cup Women 2024"]
[Site "Apolda"]
[Date "2024.02.23"]
[Round "9.10"]
[White "Medic, Mirjana"]
[Black "Hapala, Elisabeth"]
[Result "1-0"]
[ECO "D05"]
[WhiteElo "2151"]
[BlackElo "2001"]
[Annotator "RC"]
[PlyCount "69"]
[EventDate "2024.02.15"]
[EventType "team-tourn"]
[EventCountry "GER"]
[SourceTitle "playchess.com"]
[Source "ChessBase"]
[SourceQuality "1"]
[WhiteTeam "Croatia"]
[BlackTeam "Austria"]
[WhiteTeamCountry "CRO"]
[BlackTeamCountry "AUT"]
[TimeControl "40/5400+30:1800+30"]

1. d4 {[%emt 0:00:02]} Nf6 {[%emt 0:00:04]} 2. Nf3 {[%emt 1:31:28]} e6 {[%emt 0:00:07]} 3. e3 {[%emt 0:00:00]} c5 {[%emt 0:00:22]} 4. Bd3 {[%emt 0:00:00]} d5 {[%emt 0:00:35]} 5. b3 {[%emt 0:00:00]} Nc6 {[%emt 0:00:17]} 6. Bb2 {[%emt 0:00:00]} Bd6 {[%emt 0:00:33]} 7. O-O {[%emt 0:00:00]} O-O {[%emt 0:00:25]} 8. Nbd2 {[%emt 0:00:00]} b6 {[%emt 0:00:56]} 9. c4 {[%emt 0:00:00]} cxd4 {[%emt 0:01:31]} 10. exd4 {[%emt 0:00:00]} Bb7 {[%emt 0:01:07]} 11. Re1 {[%emt 0:00:00]} Rc8 {[%emt 0:04:23]} 12. Rc1 {[%emt 0:00:00]} Re8 {[%emt 0:08:53]} 13. c5 {[%emt 0:00:00]} bxc5 {[%emt 0:10:18]} 14. dxc5 {[%emt 0:00:00]} Bb8 {[%emt 0:00:49]} 15. Bb5 {[%emt 0:00:00]} a6 {[%emt 0:17:17]} 16. Bxc6 {[%emt 0:00:00]} Bxc6 {[%emt 0:00:07]} 17. b4 {[%emt 0:00:00]} Nd7 {[%emt 0:03:29]} 18. Nd4 {[%emt 0:00:00]} e5 {[%emt 0:03:20]} 19. Nxc6 {[%emt 0:00:00]} Rxc6 {[%emt 0:00:05]} 20. Nf3 {[%emt 0:00:00]} d4 {[%emt 0:07:27]} 21. Qa4 {[%emt 0:00:00]} Rh6 {[%emt 0:05:37]} 22. h3 {[%emt 0:00:00]} Rg6 {[%emt 0:10:47]} 23. c6 {[%emt 0:00:00]} Nb6 {[%emt 0:02:24]} 24. Qb3 {[%emt 0:00:00]} Nd5 {[%emt 0:04:03]} 25. Bxd4 {[%emt 0:00:00]} Nf4 {[%emt 0:02:03]} 26. Bxe5 {[%emt 0:00:00]} Rxg2+ {[%emt 0:03:24]} 27. Kf1 {[%emt 0:00:00]} Bxe5 {[%emt 0:10:04]} 28. Nxe5 {[%emt 0:00:00]} Qf6 {[%emt 0:02:14]} 29. Qxf7+ {[%emt 0:00:28]} Qxf7 {[%emt 0:00:04]} 30. Nxf7 {[%emt 0:00:04]} Rxe1+ {[%emt 0:01:07]} 31. Rxe1 {[%emt 0:00:18]} Rh2 {[%emt 0:01:34]} 32. Kg1 {[%emt 0:00:57]} Rg2+ {[%emt 0:00:22]} 33. Kh1 {[%emt 0:00:33]} Rxf2 {[%emt 0:00:33]} 34. c7 {[%emt 0:01:19]} Rc2 {[%emt 0:00:25]} 35. Nd6 {[%emt 0:00:29]} 1-0

[Event "Mitropa Cup Women 2024"]
[Site "Apolda"]
[Date "2024.02.23"]
[Round "9.11"]
[White "Mayrhuber, Nikola"]
[Black "Berke, Ana"]
[Result "1-0"]
[ECO "E14"]
[WhiteElo "2009"]
[BlackElo "2092"]
[Annotator "RC"]
[PlyCount "137"]
[EventDate "2024.02.15"]
[EventType "team-tourn"]
[EventCountry "GER"]
[SourceTitle "playchess.com"]
[Source "ChessBase"]
[SourceQuality "1"]
[WhiteTeam "Austria"]
[BlackTeam "Croatia"]
[WhiteTeamCountry "AUT"]
[BlackTeamCountry "CRO"]
[TimeControl "40/5400+30:1800+30"]

1. d4 {[%emt 0:00:03]} d5 {[%emt 0:00:11]} 2. c4 {[%emt 0:00:04]} e6 {[%emt 0:00:06]} 3. Nf3 {[%emt 0:00:03]} Nf6 {[%emt 0:00:29]} 4. e3 {[%emt 0:00:03]} Bd6 {[%emt 0:03:49]} 5. b3 {[%emt 0:01:07]} O-O {[%emt 0:00:18]} 6. Bd3 {[%emt 0:00:36]} b6 {[%emt 0:01:44]} 7. Bb2 {[%emt 0:00:32]} Bb7 {[%emt 0:00:24]} 8. O-O {[%emt 0:00:30]} c5 {[%emt 0:00:19]} 9. Nbd2 {[%emt 0:02:50]} Nc6 {[%emt 0:04:13]} 10. cxd5 {[%emt 0:02:11]} exd5 {[%emt 0:00:37]} 11. Rc1 {[%emt 0:02:33]} Re8 {[%emt 0:00:33]} 12. Re1 {[%emt 0:09:54]} Ne4 {[%emt 0:02:19]} 13. Bb5 {[%emt 0:11:16]} a6 {[%emt 0:05:21]} 14. Bxc6 {[%emt 0:03:14]} Bxc6 {[%emt 0:00:09]} 15. Ne5 {[%emt 0:00:38]} Bb7 {[%emt 0:01:27]} 16. Nxe4 {[%emt 1:02:56]} dxe4 {[%emt 0:02:06]} 17. Nc4 {[%emt 0:00:30]} Re6 {[%emt 0:05:39]} 18. Nxd6 {[%emt 0:00:00]} Rxd6 {[%emt 0:02:44]} 19. Qg4 Rg6 {[%emt 1:07:32]} 20. Qf4 {[%emt 0:00:00]} Rc8 {[%emt 0:00:00]} 21. dxc5 {[%emt 0:00:00]} Rxc5 {[%emt 0:00:00]} 22. Rxc5 {[%emt 0:00:00]} bxc5 {[%emt 0:00:00]} 23. Qe5 {[%emt 0:00:00]} h6 {[%emt 0:00:00]} 24. Qxc5 {[%emt 0:00:00]} Kh7 {[%emt 0:00:00]} 25. Bd4 {[%emt 0:00:00]} Bc8 {[%emt 0:00:00]} 26. Qe5 {[%emt 0:00:00]} Bh3 {[%emt 0:00:00]} 27. g3 {[%emt 0:00:00]} f5 {[%emt 0:00:00]} 28. Rc1 {[%emt 0:01:29]} Qg5 {[%emt 0:00:00]} 29. Rc7 {[%emt 0:01:44]} Qg4 {[%emt 0:00:00]} 30. f3 {[%emt 0:00:05]} Qg5 {[%emt 0:00:00]} 31. Kf2 {[%emt 0:00:04]} exf3 {[%emt 0:00:00]} 32. b4 {[%emt 0:01:41]} h5 {[%emt 0:00:00]} 33. a4 {[%emt 0:00:26]} h4 {[%emt 0:00:00]} 34. Qf4 {[%emt 0:00:49]} hxg3+ {[%emt 0:00:00]} 35. hxg3 {[%emt 0:00:01]} Bg4 {[%emt 0:00:00]} 36. Qxg5 {[%emt 0:00:36]} Rxg5 {[%emt 0:00:00]} 37. b5 {[%emt 0:00:46]} axb5 {[%emt 0:00:00]} 38. axb5 {[%emt 0:00:01]} Rh5 {[%emt 0:00:00]} 39. Kg1 {[%emt 0:01:00]} f2+ {[%emt 0:03:45]} 40. Kxf2 {[%emt 0:00:25]} Rh2+ {[%emt 0:00:04]} 41. Kg1 {[%emt 0:04:21]} Rd2 {[%emt 0:01:52]} 42. Bc3 {[%emt 0:08:38]} Rd5 {[%emt 0:11:37]} 43. b6 {[%emt 0:01:09]} Rb5 {[%emt 0:00:17]} 44. Bxg7 {[%emt 0:07:47]} Kg6 {[%emt 0:01:07]} 45. Bd4 {[%emt 0:01:42]} Bf3 {[%emt 0:00:20]} 46. Kf2 {[%emt 0:01:10]} Be4 {[%emt 0:00:26]} 47. Rg7+ {[%emt 0:01:23]} Kh6 {[%emt 0:00:33]} 48. g4 {[%emt 0:01:05]} fxg4 {[%emt 0:02:20]} 49. Rxg4 {[%emt 0:00:01]} Bg6 {[%emt 0:05:52]} 50. Kg3 {[%emt 0:00:34]} Bh5 {[%emt 0:04:19]} 51. Rg8 {[%emt 0:01:21]} Bg6 {[%emt 0:01:14]} 52. Rc8 {[%emt 0:04:32]} Kg5 {[%emt 0:01:21]} 53. Rc6 {[%emt 0:02:48]} Be4 {[%emt 0:01:16]} 54. Re6 {[%emt 0:00:19]} Bg6 {[%emt 0:01:00]} 55. e4 {[%emt 0:00:53]} Rb3+ {[%emt 0:00:39]} 56. Kf2 {[%emt 0:00:02]} Bh7 {[%emt 0:04:16]} 57. Re7 {[%emt 0:01:08]} Bg6 {[%emt 0:00:46]} 58. e5 {[%emt 0:01:29]} Be4 {[%emt 0:03:17]} 59. Rf7 {[%emt 0:00:27]} Bd5 {[%emt 0:00:48]} 60. Rf8 {[%emt 0:00:35]} Kg6 {[%emt 0:00:40]} 61. Rd8 {[%emt 0:00:35]} Be6 {[%emt 0:01:12]} 62. Rf8 {[%emt 0:00:31]} Kg5 {[%emt 0:01:25]} 63. Be3+ {[%emt 0:00:24]} Kg4 {[%emt 0:00:28]} 64. Rf4+ {[%emt 0:00:02]} Kh5 {[%emt 0:00:27]} 65. Rf6 {[%emt 0:00:17]} Bd5 {[%emt 0:00:53]} 66. e6 {[%emt 0:00:03]} Rb2+ {[%emt 0:00:37]} 67. Kg3 {[%emt 0:00:20]} Rg2+ {[%emt 0:00:35]} 68. Kh3 {[%emt 0:01:05]} Bxe6+ {[%emt 0:00:32]} 69. Kxg2 {[%emt 0:00:16]} 1-0